bitfinex/quotes_ETHUSD_20251122
["timestamp","ask_amount","ask_price","bid_price","bid_amount"]
[1763815574929,0.002,2721.3,2721.2,1.61699264]
[1763815575133,0.002,2721.3,2721.2,5.29184197]
[1763815575322,0.002,2721.3,2721.2,1.32399264]
[1763815575629,0.002,2721.3,2721.2,4.99884197]
[1763815576628,0.002,2721.3,2721.2,4.87484197]
[1763815576831,0.469,2721.3,2721.2,1.03099264]
[1763815577037,0.002,2721.3,2721.2,1.03099264]
[1763815578124,0.002,2721.3,2721.2,1.32399264]
[1763815578419,0.002,2721.3,2721.2,1.19999264]
[1763815578623,0.002,2721.3,2721.2,1.32399264]
[1763815579633,0.002,2721.3,2721.2,1.03099264]
[1763815580735,0.002,2721.3,2721.2,1.32399264]
[1763815580916,0.002,2721.3,2721.2,1.03099264]
[1763815581104,0.002,2721.3,2721.2,0.124]
[1763815581305,0.002,2721.3,2721.1,0.04]
[1763815581505,0.002,2721.3,2721.2,0.124]
[1763815582449,0.9674,2721.3,2721.1,0.001]
[1763815582746,0.467,2721.2,2721.1,0.001]
[1763815582914,0.9654,2721.2,2721.1,0.001]
[1763815585556,0.002,2721.3,2721.1,0.001]
[1763815586365,0.002,2721.3,2721.2,0.417]
[1763815586653,0.002,2721.3,2721.2,3.9904311]
[1763815586856,0.002,2721.3,2721.2,4.2834311]
[1763815587026,0.002,2721.3,2721.2,4.24668261]
[1763815587357,0.002,2721.3,2721.2,7.92153194]
[1763815588552,0.002,2721.3,2721.2,4.24668261]
[1763815588753,0.469,2721.3,2721.2,0.124]
[1763815589159,0.002,2721.3,2721.2,0.417]
[1763815589359,0.002,2721.3,2721.2,4.42159782]
[1763815589930,0.002,2721.3,2721.2,7.92153194]
[1763815590838,0.002,2721.3,2721.2,8.82852458]
[1763815591250,0.002,2721.3,2721.2,1.32399264]
[1763815591640,0.002,2721.3,2721.2,4.99884197]
[1763815591853,0.002,2721.3,2721.2,1.32399264]
[1763815592888,0.469,2721.3,2721.2,1.03099264]
[1763815593835,0.469,2721.3,2721.2,0.90699264]
[1763815594032,0.469,2721.3,2721.2,1.03099264]
[1763815594559,0.002,2721.3,2721.2,4.99884197]
[1763815594874,0.002,2721.3,2721.2,8.41152458]
[1763815595046,0.002,2721.3,2721.2,8.53552458]
[1763815595233,0.002,2721.3,2721.2,8.82852458]
[1763815595570,0.002,2721.3,2721.2,8.53552458]
[1763815596065,0.002,2721.3,2721.2,4.86067525]
[1763815596262,0.002,2721.3,2721.2,8.53552458]
[1763815596464,0.002,2721.3,2721.2,8.82852458]
[1763815597186,0.002,2721.3,2721.2,8.53552458]
[1763815597397,0.002,2721.3,2721.2,8.82852458]
[1763815601307,0.002,2721.3,2721.2,12.70552458]
[1763815601606,0.002,2721.3,2721.2,8.82852458]
[1763815603885,0.002,2721.3,2721.2,8.53552458]
[1763815604086,0.002,2721.3,2721.2,8.82852458]
[1763815604690,0.002,2721.3,2721.2,8.53552458]
[1763815604891,0.002,2721.3,2721.2,7.50453194]
[1763815605211,0.002,2721.3,2721.2,8.24252458]
[1763815605704,0.002,2721.3,2721.2,4.44367525]
[1763815605887,0.9607,2721.3,2721.2,1.03099264]
[1763815606079,0.9607,2721.3,2721.2,4.56767525]
[1763815606579,0.9607,2721.3,2721.2,1.03099264]
[1763815606790,0.002,2721.3,2721.2,4.70584197]
[1763815607101,0.002,2721.3,2721.2,4.56767525]
[1763815607702,0.002,2721.3,2721.2,8.24252458]
[1763815608004,0.002,2721.3,2721.2,4.56767525]
[1763815608307,0.002,2721.3,2721.2,8.24252458]
[1763815609103,0.4651,2721.3,2721.2,4.56767525]
[1763815610478,0.9607,2721.3,2721.1,0.001]
[1763815610812,0.4631,2721.2,2721.1,0.90799264]
[1763815610970,0.9587,2721.2,2721.1,0.90799264]
[1763815611489,0.9587,2721.2,2721.1,4.58297702]
[1763815611810,0.9587,2721.2,2721.1,4.70697702]
[1763815612194,0.4631,2721.2,2721.1,4.70697702]
[1763815612396,0.002,2721.3,2721.1,5.03672686]
[1763815612595,0.002,2721.3,2721.1,4.99997702]
[1763815612801,0.002,2721.3,2721.1,4.9999665]
[1763815613111,0.002,2721.3,2721.1,4.7069665]
[1763815614092,0.4976,2721.3,2721.1,4.7069665]
[1763815615309,0.4631,2721.2,2721.1,0.125]
[1763815615810,0.9587,2721.2,2721.1,0.125]
[1763815616277,0.9607,2721.2,2721.1,0.125]
[1763815617201,0.002,2721.2,2721.1,0.125]
[1763815617713,0.4651,2721.2,2721.1,0.125]
[1763815618176,0.9607,2721.2,2721.1,0.125]
[1763815618516,0.9607,2721.2,2721.1,0.001]
[1763815618714,0.9607,2721.2,2721.1,0.125]
[1763815623342,0.002,2721.2,2721.1,0.418]
[1763815623504,0.002,2721.2,2721.1,4.12973422]
[1763815624215,0.002,2721.2,2721.1,5.32972686]
[1763815625725,0.002,2721.2,2721.1,5.36872686]
[1763815628242,0.002,2721.2,2721.1,4.99997702]
[1763815629928,0.002,2721.2,2721.1,4.70697702]
[1763815629929,0.4848,2721.2,2721.1,4.70697702]
[1763815630839,0.002,2721.2,2721.1,4.99997702]
[1763815631007,0.002,2721.2,2721.1,5.07572686]
[1763815631207,0.002,2721.2,2721.1,5.36872686]
[1763815632509,0.002,2721.2,2721.1,1.32499264]
[1763815632712,0.002,2721.2,2721.1,4.99997702]
[1763815633646,0.002,2721.2,2721.1,4.58297702]
[1763815633945,0.002,2721.2,2721.1,4.70697702]
[1763815634254,0.002,2721.2,2721.1,4.99997702]
[1763815635438,0.002,2721.2,2721.1,4.70697702]
[1763815636063,0.002,2721.2,2721.1,4.58297702]
[1763815636267,0.9682,2721.2,2721.1,4.58297702]
[1763815636473,0.4848,2721.2,2721.1,4.70697702]
[1763815637737,0.4848,2721.2,2721.1,1.03199264]
[1763815637970,0.9682,2721.2,2721.1,0.001]
[1763815639429,0.002,2721.2,2721.1,0.001]
[1763815639632,0.9682,2721.2,2721.1,0.001]
[1763815641870,0.4848,2721.2,2721.1,0.001]
[1763815642061,0.002,2721.2,2721.1,0.001]
[1763815642454,0.4848,2721.2,2721.1,0.001]
[1763815642773,0.9682,2721.2,2721.1,0.001]
[1763815646277,0.002,2721.2,2721.1,0.001]
[1763815646859,0.9682,2721.2,2721.1,0.001]
[1763815649374,0.002,2721.2,2721.1,0.001]
[1763815649554,0.4848,2721.2,2721.1,0.001]
[1763815649881,0.9682,2721.2,2721.1,0.001]
[1763815652694,0.4848,2721.2,2721.1,0.001]
[1763815654367,0.002,2721.2,2721.1,0.333]
[1763815654562,0.002,2721.2,2721.1,0.457]
[1763815655574,0.002,2721.2,2721.1,0.001]
[1763815655575,0.4848,2721.2,2721.1,0.001]
[1763815657576,0.9352,2721.2,2721.1,0.001]
[1763815658926,0.002,2721.2,2721.1,0.001]
[1763815661075,0.9362,2721.2,2721.1,0.001]
[1763815664107,0.002,2721.2,2721.1,0.294]
[1763815664310,0.002,2721.2,2721.1,0.001]
[1763815664924,0.4858,2721.2,2721.1,0.001]
[1763815665129,0.9362,2721.2,2721.1,0.001]
[1763815665993,0.4858,2721.2,2721.1,0.001]
[1763815666922,0.9362,2721.2,2721.1,0.001]
[1763815667682,0.4858,2721.2,2721.1,0.001]
[1763815668085,0.002,2721.2,2721.1,0.001]
[1763815669729,0.4858,2721.2,2721.1,0.001]
[1763815669929,0.9362,2721.2,2721.1,0.001]
[1763815677321,0.002,2721.2,2721.1,0.294]
[1763815677511,0.002,2721.2,2721.1,0.49374984]
[1763815677714,0.002,2721.2,2721.1,0.75]
[1763815678649,0.002,2721.2,2721.1,4.42498438]
[1763815680127,0.002,2721.2,2721.1,0.75]
[1763815680329,0.002,2721.2,2721.1,0.294]
[1763815680527,0.9362,2721.2,2721.1,0.125]
[1763815680852,0.4858,2721.2,2721.1,0.125]
[1763815681220,0.9362,2721.2,2721.1,0.001]
[1763815689036,1.341704,2721.2,2721.1,0.001]
[1763815689360,2.00216504,2721.2,2721.1,0.001]
[1763815695875,2.03867886,2721.2,2721.1,0.001]
[1763815697289,2.00216504,2721.2,2721.1,0.001]
[1763815698179,2.03867886,2721.2,2721.1,0.001]
[1763815698952,2.00216504,2721.2,2721.1,0.001]
[1763815701450,2.03867886,2721.2,2721.1,0.001]
[1763815701682,2.00216504,2721.2,2721.1,0.001]
[1763815704784,5.54089673,2721.2,2721.1,0.001]
[1763815708099,9.41889422,2721.2,2721.1,0.001]
[1763815710611,5.88016253,2721.2,2721.1,0.001]
[1763815711088,2.50565368,2721.2,2721.1,0.001]
[1763815711294,2.15302444,2721.2,2721.1,0.001]
[1763815711622,2.52201462,2721.2,2721.1,0.001]
[1763815711910,2.15302444,2721.2,2721.1,0.001]
[1763815712116,2.11651062,2721.2,2721.1,0.001]
[1763815712316,2.68223485,2721.2,2721.1,0.001]
[1763815712618,3.08773885,2721.2,2721.1,0.001]
[1763815712825,2.02753885,2721.2,2721.1,0.001]
[1763815712981,0.002,2721.2,2721.1,0.294]
[1763815713179,0.126,2721.2,2721.1,0.294]
[1763815714514,0.002,2721.2,2721.1,0.587]
[1763815714716,0.126,2721.2,2721.1,0.587]
[1763815715625,0.126,2721.2,2721.1,0.626]
[1763815720456,0.126,2721.2,2721.1,0.001]
[1763815720734,0.002,2721.2,2721.1,0.333]
[1763815721327,0.002,2721.2,2721.1,0.294]
[1763815721500,0.002,2721.2,2721.1,0.333]
[1763815723607,0.4753,2721.2,2721.1,0.001]
[1763815724004,1.77402099,2721.2,2721.1,0.001]
[1763815724217,2.64449981,2721.2,2721.1,0.001]
[1763815724513,6.21974532,2721.2,2721.1,0.001]
[1763815724747,0.405504,2721.1,2721.0,0.001]
[1763815725048,5.90362833,2721.1,2721.0,0.001]
[1763815725227,7.25703238,2721.1,2721.0,0.001]
[1763815725406,7.59636622,2721.1,2721.0,0.001]
[1763815726844,3.93363453,2721.1,2721.0,0.001]
[1763815727146,5.49812433,2721.1,2721.0,0.001]
[1763815727342,0.5973,2721.1,2721.0,0.001]
[1763815727844,1.0524,2721.1,2721.0,0.001]
[1763815728039,4.59113169,2721.1,2721.0,0.001]
[1763815728337,4.62764551,2721.1,2721.0,0.001]
[1763815729006,4.59113169,2721.1,2721.0,0.001]
[1763815729210,4.13603169,2721.1,2721.0,0.001]
[1763815729915,0.124,2721.1,2721.0,0.295]
[1763815730504,0.124,2721.1,2721.0,0.001]
[1763815731243,4.99835526,2721.1,2721.0,0.001]
[1763815731439,4.54325526,2721.1,2721.0,0.001]
[1763815731631,4.13603169,2721.1,2721.0,0.001]
[1763815732515,4.62764551,2721.1,2721.0,0.001]
[1763815733646,4.59113169,2721.1,2721.0,0.001]
[1763815734443,4.99663569,2721.1,2721.0,0.001]
[1763815735214,4.54153569,2721.1,2721.0,0.001]
[1763815735447,5.49669926,2721.1,2721.0,0.001]
[1763815736451,6.44020572,2721.1,2721.0,0.001]
[1763815736949,6.4036919,2721.1,2721.0,0.001]
[1763815737120,5.9485919,2721.1,2721.0,0.001]
[1763815737320,6.44020572,2721.1,2721.0,0.001]
[1763815740453,6.4036919,2721.1,2721.0,0.001]
[1763815741018,6.44020572,2721.1,2721.0,0.001]
[1763815741547,10.31875224,2721.1,2721.0,0.001]
[1763815741722,10.28223842,2721.1,2721.0,0.001]
[1763815744767,10.42959819,2721.1,2721.0,0.001]
[1763815744966,14.33106602,2720.9,2720.8,0.001]
[1763815745145,11.0732599,2720.9,2720.8,0.001]
[1763815745344,13.8423099,2720.9,2720.8,0.001]
[1763815745547,13.8423099,2720.9,2720.7,0.001]
[1763815745548,6.08948864,2720.8,2720.7,0.001]
[1763815745872,6.18646426,2720.8,2720.7,0.001]
[1763815746227,6.22297808,2720.8,2720.5,0.001]
[1763815746459,11.20949829,2720.7,2720.5,0.001]
[1763815746664,17.37303329,2720.7,2720.5,0.001]
[1763815746863,1.80949664,2720.6,2719.1,0.427]
[1763815747083,9.38714946,2720.5,2719.1,0.427]
[1763815747387,9.38714946,2720.5,2719.1,0.133]
[1763815747388,22.49793264,2720.5,2719.1,0.133]
[1763815747687,2.27529664,2720.4,2719.1,0.133]
[1763815747885,0.405504,2719.3,2719.1,0.133]
[1763815748089,0.124,2719.2,2719.1,0.133]
[1763815748389,0.405504,2719.1,2718.9,0.133]
[1763815748550,3.53873169,2719.0,2718.5,0.294]
[1763815748750,0.124,2718.9,2718.5,0.294]
[1763815749289,0.124,2718.9,2718.8,0.294]
[1763815750379,1.02782357,2718.9,2718.3,0.294]
[1763815750574,3.53873169,2718.8,2718.3,0.294]
[1763815751452,0.53082357,2718.9,2718.7,0.294]
[1763815751453,1.10783493,2718.9,2718.7,0.294]
[1763815752390,0.70101136,2718.9,2718.7,0.294]
[1763815752688,0.497,2718.8,2718.3,0.294]
[1763815753089,4.03573169,2718.8,2718.3,0.294]
[1763815754569,0.497,2718.8,2718.3,0.294]
[1763815754866,0.497,2718.8,2717.8,7.25714593]
[1763815754867,3.53873169,2718.6,2717.8,0.039]
[1763815755183,3.53873169,2718.6,2718.1,0.294]
[1763815755184,0.124,2718.5,2718.1,0.294]
[1763815755557,0.124,2718.5,2718.4,0.294]
[1763815755856,0.124,2718.5,2717.8,0.039]
[1763815756056,0.124,2718.5,2717.9,0.294]
[1763815756556,3.53873169,2718.4,2717.9,0.294]
[1763815756762,3.90500486,2718.4,2717.9,0.294]
[1763815756985,4.00453169,2718.4,2717.9,0.294]
[1763815758092,4.00453169,2718.4,2717.8,0.039]
[1763815758294,3.53873169,2718.4,2717.8,0.039]
[1763815758587,3.53873169,2718.2,2717.8,0.039]
[1763815758891,0.124,2718.1,2717.8,0.039]
[1763815761678,0.124,2718.1,2718.0,0.294]
[1763815762402,0.44815369,2719.2,2718.0,0.294]
[1763815762561,0.90699264,2718.7,2718.2,0.294]
[1763815762892,0.405504,2718.6,2718.2,0.294]
[1763815763203,0.124,2718.5,2718.2,0.588]
[1763815763585,0.124,2718.5,2718.2,0.294]
[1763815763765,0.124,2718.5,2718.4,0.294]
[1763815764396,6.4,2719.1,2718.4,0.588]
[1763815764695,0.5770932,2719.2,2719.0,0.294]
[1763815764894,0.5770932,2719.2,2718.1,0.294]
[1763815764895,0.405504,2718.9,2718.1,0.294]
[1763815765300,4.41003569,2718.9,2718.1,0.294]
[1763815765763,0.4658,2718.8,2718.1,0.294]
[1763815765959,0.124,2718.7,2718.1,0.294]
[1763815766160,0.44201782,2718.6,2717.8,0.039]
[1763815766371,0.405504,2718.6,2717.8,0.333]
[1763815766774,0.405504,2718.6,2717.8,0.039]
[1763815766972,0.871304,2718.6,2717.8,0.039]
[1763815767175,0.871304,2718.6,2717.8,0.333]
[1763815767479,1.31249664,2718.4,2717.0,3.80252492]
[1763815767685,0.405504,2718.2,2717.3,0.294]
[1763815768202,0.871304,2718.2,2717.3,0.294]
[1763815769701,0.871304,2718.2,2718.0,0.001]
[1763815769910,1.77829664,2718.1,2718.0,0.001]
[1763815770091,2.84532509,2718.1,2718.0,0.001]
[1763815770295,2.88183891,2718.1,2718.0,0.001]
[1763815770499,2.88183891,2718.1,2717.7,0.001]
[1763815770500,0.405504,2718.0,2717.7,0.001]
[1763815770805,5.75048454,2717.8,2717.7,0.001]
[1763815771327,6.21628454,2717.8,2717.7,0.001]
[1763815771525,6.85031299,2717.8,2717.7,0.001]
[1763815772444,6.85031299,2717.8,2717.4,0.001]
[1763815772445,0.405504,2717.5,2717.4,0.001]
[1763815772590,1.026504,2717.5,2717.4,0.001]
[1763815772940,2.73737964,2717.5,2717.4,0.001]
[1763815773143,3.01476899,2717.5,2717.4,0.001]
[1763815773944,1.17989335,2717.5,2717.4,0.001]
[1763815774090,0.621,2717.5,2717.4,0.001]
[1763815774289,1.0868,2717.5,2717.4,0.001]
[1763815774791,1.492304,2717.5,2717.4,0.001]
[1763815775726,1.8670398,2717.5,2717.4,0.001]
[1763815776292,2.1620398,2717.5,2717.4,0.001]
[1763815776626,2.46894304,2717.5,2717.4,0.001]
[1763815776826,13.67261568,2717.5,2717.4,0.001]
[1763815777048,13.67261568,2717.5,2715.8,0.133]
[1763815777049,1.31249664,2717.4,2715.8,0.133]
[1763815777349,1.31249664,2717.0,2715.8,0.428]
[1763815777550,0.405504,2716.8,2715.8,0.428]
[1763815777712,0.405504,2716.8,2715.9,0.295]
[1763815777914,0.903704,2716.8,2715.9,0.295]
[1763815778115,0.57758207,2716.6,2715.9,0.295]
[1763815778325,0.405504,2716.4,2715.9,0.295]
[1763815778950,0.124,2716.5,2716.3,0.295]
[1763815779247,0.529504,2716.5,2716.4,0.295]
[1763815779551,0.529504,2716.5,2715.8,0.133]
[1763815779552,0.529504,2716.5,2715.8,0.428]
[1763815779851,0.405504,2716.4,2715.8,0.133]
[1763815780052,0.124,2716.5,2716.4,0.295]
[1763815780649,0.124,2716.5,2716.4,0.59]
[1763815781759,0.6412,2717.8,2716.4,4.27134295]
[1763815782046,0.6222,2717.7,2716.5,0.295]
[1763815782253,0.124,2717.7,2716.5,0.295]
[1763815782438,0.124,2717.7,2717.6,0.457]
[1763815782814,0.124,2717.7,2717.6,0.752]
[1763815783019,0.124,2717.7,2717.6,0.457]
[1763815783749,0.124,2717.7,2717.6,0.752]
[1763815784117,0.124,2717.7,2717.3,0.295]
[1763815784313,0.124,2717.7,2717.6,0.295]
[1763815784756,0.124,2717.7,2717.6,0.59]
[1763815784945,0.124,2717.7,2717.6,0.295]
[1763815785338,0.405504,2717.6,2717.0,0.295]
[1763815785661,0.903704,2717.6,2716.7,0.295]
[1763815785838,0.405504,2717.5,2716.7,0.295]
[1763815786036,0.903704,2717.5,2716.7,0.295]
[1763815787744,0.405504,2717.3,2716.4,0.295]
[1763815787945,0.405504,2717.1,2716.4,0.295]
[1763815788340,0.903704,2717.1,2716.4,0.295]
[1763815788521,0.903704,2717.1,2716.0,0.295]
[1763815788719,0.405504,2716.9,2716.0,0.295]
[1763815788925,0.405504,2716.9,2715.8,0.429]
[1763815789237,0.405504,2716.7,2715.8,0.429]
[1763815789432,0.405504,2716.5,2715.8,0.429]
[1763815789856,0.405504,2716.5,2715.9,0.295]
[1763815792319,0.405504,2716.5,2715.8,0.134]
[1763815792320,0.903704,2716.5,2715.8,0.134]
[1763815793254,0.405504,2716.3,2715.8,0.134]
[1763815794270,0.903704,2716.3,2715.8,0.134]
[1763815794468,0.903704,2716.3,2715.8,0.001]
[1763815794469,0.4969,2715.9,2715.8,0.001]
[1763815794685,0.8021,2715.9,2715.8,0.001]
[1763815795031,1.3003,2715.9,2715.8,0.001]
[1763815795360,0.124,2715.9,2715.8,0.296]
[1763815795561,1.3003,2715.9,2715.8,0.001]
[1763815795795,1.705804,2715.9,2715.8,0.001]
[1763815797342,0.529504,2715.9,2715.8,0.001]
[1763815797742,1.6040772,2715.9,2715.8,0.001]
[1763815797948,0.9831772,2715.9,2715.8,0.296]
[1763815798143,0.7016732,2715.9,2715.8,0.296]
[1763815798345,0.124,2715.9,2715.8,0.296]
[1763815798560,0.124,2715.9,2715.8,0.001]
[1763815798872,0.124,2715.9,2715.8,0.296]
[1763815799083,0.124,2715.9,2715.8,0.591]
[1763815800767,0.124,2715.9,2715.8,4.27315627]
[1763815801092,0.124,2715.9,2715.8,0.591]
[1763815801383,0.124,2715.9,2715.8,0.296]
[1763815801543,0.124,2715.9,2715.8,0.001]
[1763815802155,0.8021,2715.9,2715.8,0.001]
[1763815802350,1.3003,2715.9,2715.8,0.001]
[1763815802858,0.8021,2715.9,2715.8,0.001]
[1763815803058,0.124,2715.9,2715.8,0.001]
[1763815804054,0.124,2715.9,2715.8,0.296]
[1763815804471,0.124,2715.9,2715.8,0.001]
[1763815804673,0.124,2715.9,2715.8,0.296]
[1763815804856,0.124,2715.9,2715.8,0.591]
[1763815805567,0.124,2715.9,2715.8,0.296]
[1763815805752,0.124,2715.9,2715.8,0.591]
[1763815807383,0.124,2715.9,2715.8,4.27315627]
[1763815808825,0.124,2715.9,2715.8,0.296]
[1763815809114,0.124,2715.9,2715.8,0.591]
[1763815809413,0.124,2715.9,2715.8,4.27315627]
[1763815809825,0.124,2715.9,2715.8,0.591]
[1763815810288,0.124,2715.9,2715.8,4.27315627]
[1763815810489,0.124,2715.9,2715.8,0.591]
[1763815811026,0.124,2715.9,2715.8,4.27315627]
[1763815811926,0.124,2715.9,2715.8,0.591]
[1763815812132,0.124,2715.9,2715.8,4.27315627]
[1763815812298,0.405504,2716.9,2715.8,8.89912674]
[1763815812498,0.124,2716.8,2715.9,1.20199264]
[1763815812731,0.16051382,2716.8,2715.9,0.295]
[1763815812945,0.124,2716.8,2716.0,0.295]
[1763815813084,0.124,2716.8,2716.7,0.295]
[1763815813597,0.124,2716.8,2716.2,0.295]
[1763815814322,0.124,2716.8,2716.7,0.295]
[1763815814702,0.124,2716.8,2716.7,0.59]
[1763815815425,0.002,2717.4,2716.7,5.17792907]
[1763815815630,0.002,2717.4,2717.3,0.457]
[1763815815990,0.002,2717.4,2717.3,0.752]
[1763815816187,0.002,2717.4,2717.3,0.457]
[1763815816620,0.002,2717.4,2717.3,0.752]
[1763815817333,0.002,2717.7,2717.4,0.90699264]
[1763815817540,0.002,2717.7,2717.6,0.295]
[1763815817719,0.002,2717.7,2717.6,0.59]
[1763815818527,0.002,2717.7,2717.6,5.17671003]
[1763815818832,0.002,2717.7,2717.6,1.49699264]
[1763815818995,0.002,2717.7,2717.6,5.17671003]
[1763815819394,0.002,2717.7,2717.6,1.49699264]
[1763815819833,0.002,2717.7,2717.6,5.17671003]
[1763815820005,0.002,2717.7,2717.6,1.49699264]
[1763815820195,0.002,2717.7,2717.3,0.162]
[1763815820391,0.002,2717.7,2717.6,0.295]
[1763815820737,0.002,2717.7,2717.3,0.457]
[1763815820918,0.002,2717.7,2717.6,0.295]
[1763815821102,0.002,2717.7,2717.3,0.162]
[1763815821425,0.002,2717.7,2716.6,5.93012978]
[1763815821426,0.4967,2717.4,2716.9,0.162]
[1763815821627,0.974,2717.4,2716.9,0.162]
[1763815822216,0.4773,2717.3,2716.5,0.162]
[1763815822415,0.4773,2717.3,2716.5,1.06899264]
[1763815822616,0.4773,2717.3,2716.5,1.36399264]
[1763815822947,0.6033,2717.7,2716.6,0.295]
[1763815823312,0.4773,2717.6,2716.6,0.295]
[1763815824443,0.4773,2717.6,2716.9,0.001]
[1763815825147,0.126,2717.7,2716.9,0.001]
[1763815825343,0.002,2717.4,2716.9,0.001]
[1763815825744,0.4793,2717.4,2716.9,0.001]
[1763815826253,0.002,2717.4,2716.9,0.001]
[1763815826429,0.002,2717.4,2717.3,0.295]
[1763815827134,0.4987,2717.4,2716.9,0.001]
[1763815827748,0.002,2717.4,2716.9,0.296]
[1763815828954,0.002,2717.4,2716.9,0.001]
[1763815829319,0.002,2717.4,2716.9,0.296]
[1763815830052,0.002,2717.4,2717.3,0.295]
[1763815830665,0.002,2717.4,2717.3,0.59]
[1763815830872,0.126,2717.4,2717.3,4.27012365]
[1763815831170,0.126,2717.4,2717.3,0.295]
[1763815831332,0.126,2717.4,2717.3,4.27012365]
[1763815832164,0.126,2717.4,2717.3,0.59]
[1763815832320,0.126,2717.4,2717.3,4.27012365]
[1763815833568,0.126,2717.4,2717.3,5.17711629]
[1763815833987,0.126,2717.4,2717.3,1.49699264]
[1763815834143,0.126,2717.4,2717.3,1.20199264]
[1763815834539,0.126,2717.4,2717.3,5.17711629]
[1763815834738,0.126,2717.4,2717.3,0.295]
[1763815839574,0.126,2717.4,2717.3,0.59]
[1763815839872,0.126,2717.4,2717.3,0.295]
[1763815840076,0.126,2717.4,2717.3,0.59]
[1763815840777,0.126,2717.4,2717.3,5.21391752]
[1763815841507,0.002,2717.4,2717.3,5.17711629]
[1763815841708,0.002,2717.4,2717.3,5.21391752]
[1763815842493,0.002,2717.7,2717.3,9.46362029]
[1763815842678,0.126,2718.0,2717.7,0.90699264]
[1763815842679,0.002,2718.0,2717.7,0.90699264]
[1763815843024,0.002,2718.3,2717.9,0.295]
[1763815843177,0.002,2718.3,2718.2,5.94293646]
[1763815843376,0.002,2718.3,2718.2,9.91684161]
[1763815843577,0.002,2718.3,2718.2,1.20199264]
[1763815843979,0.002,2718.3,2718.2,0.90699264]
[1763815844382,0.002,2718.3,2717.6,0.295]
[1763815844383,0.9501,2718.3,2717.6,0.295]
[1763815844709,0.9501,2718.3,2717.7,0.90699264]
[1763815845073,0.9501,2718.3,2717.3,4.74194382]
[1763815845074,0.4744,2718.2,2717.4,4.58698086]
[1763815845280,0.5984,2718.2,2717.4,4.58698086]
[1763815845617,0.124,2718.2,2717.4,4.58692692]
[1763815845920,0.4744,2718.1,2717.5,0.03679852]
[1763815846222,0.124,2718.2,2717.5,0.03679852]
[1763815846391,0.4744,2718.1,2717.3,3.6810624]
[1763815846596,0.4744,2718.1,2717.4,0.90699264]
[1763815846990,0.4744,2718.1,2717.5,0.03679852]
[1763815847817,0.4744,2718.1,2717.5,3.71652408]
[1763815847989,0.4744,2718.1,2717.5,3.71664805]
[1763815848432,0.4744,2718.1,2717.4,0.90699264]
[1763815848582,0.4744,2718.1,2717.3,7.36122224]
[1763815848922,0.124,2718.2,2717.4,0.03679988]
[1763815849093,0.124,2718.2,2717.4,1.23879252]
[1763815849480,0.002,2718.3,2717.5,0.295]
[1763815850013,0.002,2718.3,2717.7,0.90699264]
[1763815850514,0.4744,2718.2,2717.3,0.001]
[1763815850688,0.4737,2717.8,2717.4,0.90699264]
[1763815850893,0.4737,2717.8,2717.3,0.001]
[1763815851313,0.9481,2717.8,2717.3,0.90799264]
[1763815851515,0.9481,2717.8,2717.3,4.58810899]
[1763815851686,0.4764,2718.3,2717.4,1.20199264]
[1763815851885,0.4764,2718.3,2717.3,4.58805858]
[1763815852096,0.4764,2718.3,2717.3,8.59998346]
[1763815852286,0.002,2718.3,2717.4,0.295]
[1763815852706,0.002,2718.3,2717.5,0.03679852]
[1763815852910,0.4744,2718.2,2717.3,8.26818223]
[1763815853407,0.4744,2718.2,2717.3,8.56318223]
[1763815854008,0.002,2718.3,2717.4,7.69177632]
[1763815854214,0.002,2718.3,2717.4,7.65497644]
[1763815854397,0.002,2718.3,2717.5,0.295]
[1763815854794,0.002,2718.3,2717.6,0.03679717]
[1763815854994,0.002,2718.3,2717.5,0.295]
[1763815855424,0.124,2718.2,2717.6,0.03679717]
[1763815855926,0.124,2718.2,2717.6,0.33179717]
[1763815856293,0.124,2718.2,2717.8,0.90699264]
[1763815856625,0.124,2718.2,2718.1,0.295]
[1763815857022,0.002,2718.3,2718.1,0.295]
[1763815857394,0.002,2718.3,2718.2,0.295]
[1763815858038,0.002,2718.3,2717.8,5.64793646]
[1763815858322,0.002,2718.3,2718.0,3.67917586]
[1763815858526,0.002,2718.3,2718.1,0.90699264]
[1763815859088,0.002,2718.3,2718.2,0.295]
[1763815859325,0.002,2718.3,2718.2,0.59]
[1763815859530,0.002,2718.3,2718.2,0.295]
[1763815860301,0.002,2718.3,2718.2,3.97390515]
[1763815861225,0.002,2718.3,2718.0,4.58611733]
[1763815861226,0.4757,2718.3,2718.0,4.58611733]
[1763815861544,0.9501,2718.3,2717.6,0.295]
[1763815861700,0.9501,2718.3,2717.8,0.90699264]
[1763815862332,0.5984,2718.2,2717.7,4.58649314]
[1763815862548,0.4737,2717.8,2717.5,4.58682123]